fUSD/lending_fUSD_20260128
["ID","MTS","AMOUNT","RATE_DAILY","PERIOD"]
[403897104,1769640656309,-500.0,0.00043287,120]
[403897105,1769640656319,-500.0,0.00043287,120]
[403897106,1769640656328,-500.0,0.00043287,120]
[403897107,1769640656337,-500.0,0.00043287,120]
[403897108,1769640656346,-500.0,0.00043287,120]
[403897109,1769640656355,-500.0,0.00043287,120]
[403897110,1769640656365,-500.0,0.00043287,120]
[403897111,1769640656374,-500.0,0.00043287,120]
[403897112,1769640656383,-500.0,0.00043287,120]
[403897113,1769640656392,-500.0,0.00043287,120]
[403897114,1769640656401,-500.0,0.00043287,120]
[403897115,1769640656410,-500.0,0.00043287,120]
[403897116,1769640656420,-500.0,0.00043287,120]
[403897117,1769640656428,-500.0,0.00043287,120]
[403897118,1769640656438,-540.39208077,0.00043287,120]
[403897119,1769640656447,-500.0,0.00043287,120]
[403897120,1769640656456,-534.85660999,0.00043287,120]
[403897121,1769640656465,-500.0,0.00043287,120]
[403897122,1769640656474,-500.0,0.00043287,120]
[403897123,1769640656483,-500.0,0.00043287,120]
[403897124,1769640656492,-500.0,0.00043287,120]
[403897125,1769640656501,-500.0,0.00043287,120]
[403897126,1769640656510,-500.0,0.00043287,120]
[403897127,1769640656519,-500.0,0.00043287,120]
[403897128,1769640656527,-500.0,0.00043287,120]
[403897129,1769640656537,-314.74052469,0.00043287,120]
[403897130,1769640656547,-500.0,0.00043287,120]
[403897131,1769640656559,-500.0,0.00043287,120]
[403897132,1769640656572,-500.0,0.00043287,120]
[403897133,1769640656581,-584.09570615,0.00043287,120]
[403897134,1769640656590,-500.0,0.00043287,120]
[403897135,1769640656599,-500.0,0.00043287,120]
[403897136,1769640656609,-500.0,0.00043287,120]
[403897137,1769640656618,-52.33461757,0.00043287,120]
[403897138,1769640656885,-447.66538243,0.00043287,120]
[403897139,1769640656895,-514.93736851,0.00043287,120]
[403897140,1769640656904,-500.0,0.00043287,120]
[403897141,1769640656914,-500.0,0.00043287,120]
[403897142,1769640656923,-500.0,0.00043287,120]
[403897143,1769640656932,-500.0,0.00043287,120]
[403897144,1769640656942,-500.0,0.00043287,120]
[403897145,1769640656951,-500.0,0.00043287,120]
[403897146,1769640656960,-500.0,0.00043287,120]
[403897147,1769640656969,-500.0,0.00043287,120]
[403897148,1769640656979,-500.0,0.00043287,120]
[403897149,1769640656989,-508.37098904,0.00043287,120]
[403897150,1769640656998,-500.0,0.00043287,120]
[403897151,1769640657008,-445.94001188,0.00043287,120]
[403897152,1769640657017,-500.0,0.00043287,120]
[403897153,1769640657026,-500.0,0.00043287,120]
[403897154,1769640657035,-500.0,0.00043287,120]
[403897155,1769640657045,-500.0,0.00043287,120]
[403897156,1769640657054,-500.0,0.00043287,120]
[403897157,1769640657063,-500.0,0.00043287,120]
[403897158,1769640657072,-500.0,0.00043287,120]
[403897159,1769640657082,-500.0,0.00043287,120]
[403897160,1769640657091,-500.0,0.00043287,120]
[403897161,1769640657100,-500.0,0.00043287,120]
[403897162,1769640657110,-500.0,0.00043287,120]
[403897163,1769640657119,-500.0,0.00043287,120]
[403897164,1769640657129,-500.0,0.00043287,120]
[403897165,1769640657138,-500.0,0.00043287,120]
[403897166,1769640657147,-500.0,0.00043287,120]
[403897167,1769640657159,-500.0,0.00043287,120]
[403897168,1769640657170,-500.0,0.00043287,120]
[403897169,1769640657179,-500.0,0.00043287,120]
[403897170,1769640657189,-297.70775558,0.00043287,120]
[403897171,1769640657198,-500.0,0.00043287,120]
[403897172,1769640657207,-500.0,0.00043287,120]
[403897173,1769640657216,-500.0,0.00043287,120]
[403897174,1769640657227,-500.0,0.00043287,120]
[403897175,1769640657237,-500.0,0.00043287,120]
[403897176,1769640657246,-500.0,0.00043287,120]
[403897177,1769640657257,-500.0,0.00043287,120]
[403897178,1769640657266,-500.0,0.00043287,120]
[403897179,1769640657275,-500.0,0.00043287,120]
[403897180,1769640657284,-500.0,0.00043287,120]
[403897181,1769640657293,-500.0,0.00043287,120]
[403897182,1769640657303,-482.74260116,0.00043287,120]
[403897183,1769640657312,-500.0,0.00043287,120]
[403897184,1769640657321,-500.0,0.00043287,120]
[403897185,1769640657331,-500.0,0.00043287,120]
[403897186,1769640657340,-500.0,0.00043287,120]
[403897187,1769640657349,-500.0,0.00043287,120]
[403897188,1769640657689,-500.0,0.00043287,120]
[403897189,1769640657712,-500.0,0.00043287,120]
[403897190,1769640657722,-500.0,0.00043287,120]
[403897191,1769640657731,-500.0,0.00043287,120]
[403897192,1769640657740,-500.0,0.00043287,120]
[403897193,1769640657751,-500.0,0.00043287,120]
[403897194,1769640657760,-500.0,0.00043287,120]
[403897195,1769640657769,-500.0,0.00043287,120]
[403897196,1769640657780,-500.0,0.00043287,120]
[403897197,1769640657789,-500.0,0.00043287,120]
[403897198,1769640657798,-500.0,0.00043287,120]
[403897199,1769640657807,-500.0,0.00043287,120]
[403897200,1769640657817,-500.0,0.00043287,120]
[403897201,1769640657827,-500.0,0.00043287,120]
[403897202,1769640657836,-593.07329925,0.00043287,120]
[403897203,1769640657846,-500.0,0.00043287,120]
[403897204,1769640657856,-500.0,0.00043287,120]
[403897205,1769640657866,-500.0,0.00043287,120]
[403897206,1769640657875,-500.0,0.00043287,120]
[403897207,1769640657885,-600.0,0.00043287,120]
[403897208,1769640657895,-500.0,0.00043287,120]
[403897209,1769640657905,-500.0,0.00043287,120]
[403897210,1769640657914,-500.0,0.00043287,120]
[403897211,1769640657924,-171.39553178,0.00043287,120]
[403897212,1769640657933,-500.0,0.00043287,120]
[403897213,1769640657943,-500.0,0.00043287,120]
[403897214,1769640657952,-500.0,0.00043287,120]
[403897215,1769640657961,-500.0,0.00043287,120]
[403897216,1769640657971,-500.0,0.00043287,120]
[403897217,1769640657980,-500.0,0.00043287,120]
[403897218,1769640657990,-500.0,0.00043287,120]
[403897219,1769640657999,-500.0,0.00043287,120]
[403897220,1769640658009,-500.0,0.00043287,120]
[403897221,1769640658019,-500.0,0.00043287,120]
[403897222,1769640658028,-500.0,0.00043287,120]
[403897223,1769640658040,-500.0,0.00043287,120]
[403897224,1769640658049,-500.0,0.00043287,120]
[403897225,1769640658059,-500.0,0.00043287,120]
[403897226,1769640658068,-500.0,0.00043287,120]
[403897227,1769640658078,-500.0,0.00043287,120]
[403897228,1769640658088,-500.0,0.00043287,120]
[403897229,1769640658098,-500.0,0.00043287,120]
[403897230,1769640658107,-500.0,0.00043287,120]
[403897231,1769640658117,-500.0,0.00043287,120]
[403897232,1769640658127,-500.0,0.00043287,120]
[403897233,1769640658136,-224.34188959,0.00043287,120]
[403897234,1769640658146,-500.0,0.00043287,120]
[403897235,1769640658156,-500.0,0.00043287,120]
[403897236,1769640658166,-439.62292628,0.00043287,120]
[403897237,1769640658300,-60.37707372,0.00043287,120]
[403897238,1769640658310,-509.01936896,0.00043287,120]
[403897239,1769640658319,-500.0,0.00043287,120]
[403897240,1769640658329,-500.0,0.00043287,120]
[403897241,1769640658338,-220.47163011,0.00043287,120]
[403897242,1769640658347,-374.13937896,0.00043287,120]
[403897243,1769640658363,-125.86062104,0.00043287,120]
[403897244,1769640658372,-500.0,0.00043287,120]
[403897245,1769640658382,-500.0,0.00043287,120]
[403897246,1769640658391,-500.0,0.00043287,120]
[403897247,1769640658401,-472.57161862,0.00043287,120]
[403897248,1769640658416,-27.42838138,0.00043287,120]
[403897249,1769640658426,-500.0,0.00043287,120]
[403897250,1769640658437,-472.57161862,0.00043287,120]
[403897251,1769640658995,-500.0,0.00043285,120]
[403897252,1769640659005,-500.0,0.00043285,120]
[403897253,1769640659015,-500.0,0.00043285,120]
[403897254,1769640659025,-500.0,0.00043285,120]
[403897255,1769640659034,-175.41085079,0.00043285,120]
[403897256,1769640659709,-324.58914921,0.00043285,120]
[403897257,1769640659718,-500.0,0.00043285,120]
[403897258,1769640659729,-500.0,0.00043285,120]
[403897259,1769640659738,-500.0,0.00043285,120]
[403897260,1769640659748,-500.0,0.00043285,120]
[403897261,1769640659759,-27.42838138,0.00043287,120]
[403897262,1769640659769,-500.0,0.00043287,120]
[403897263,1769640659779,-543.64367204,0.00043287,120]
[403897264,1769640659788,-500.0,0.00043287,120]
[403897265,1769640659799,-500.0,0.00043287,120]
[403897266,1769640659810,-500.0,0.00043287,120]
[403897267,1769640659820,-500.0,0.00043287,120]
[403897268,1769640659830,-383.12849641,0.00043287,120]
[403897269,1769640659839,-500.0,0.00043287,120]
[403897270,1769640659849,-531.44,0.00043287,120]
[403897271,1769640659860,-531.44,0.00043287,120]
[403897272,1769640659869,-531.44,0.00043287,120]
[403897273,1769640659880,-500.0,0.00043287,120]
[403897274,1769640659890,-531.44,0.00043287,120]
[403897275,1769640659900,-500.0,0.00043287,120]
[403897276,1769640659909,-500.0,0.00043287,120]
[403897277,1769640659919,-500.0,0.00043287,120]
[403897278,1769640659930,-216.76813138,0.00043287,120]
[403897279,1769640659967,-283.23186862,0.00043287,120]
[403897280,1769640659978,-500.0,0.00043287,120]
[403897281,1769640659988,-500.0,0.00043287,120]
[403897282,1769640659997,-500.0,0.00043287,120]
[403897283,1769640660008,-484.44151074,0.00043287,120]
[403897284,1769640660024,-15.55848926,0.00043287,120]
[403897285,1769640660033,-500.0,0.00043287,120]
[403897286,1769640660044,-500.0,0.00043287,120]
[403897287,1769640660053,-531.44,0.00043287,120]
[403897288,1769640660063,-500.0,0.00043287,120]
[403897289,1769640660163,-530.23002666,0.00043287,120]
[403897290,1769640660173,-500.0,0.00043287,120]
[403897291,1769640660182,-531.44,0.00043287,120]
[403897292,1769640660191,-500.0,0.00043287,120]
[403897293,1769640660200,-531.44,0.00043287,120]
[403897294,1769640660209,-295.89802204,0.00043287,120]
[403897295,1769640660218,-531.44,0.00043287,120]
[403897296,1769640660227,-103.00800172,0.00043287,120]
[403897297,1769640660254,-428.43199828,0.00043287,120]
[403897298,1769640660264,-531.44,0.00043287,120]
[403897299,1769640660273,-513.58106214,0.00043287,120]
[403897300,1769640660282,-531.44,0.00043287,120]
[403897301,1769640660291,-531.44,0.00043287,120]
[403897302,1769640660300,-531.44,0.00043287,120]
[403897303,1769640660309,-531.44,0.00043287,120]
[403897304,1769640660320,-500.0,0.00043287,120]
[403897305,1769640660330,-531.44,0.00043287,120]
[403897306,1769640660340,-500.0,0.00043287,120]
[403897307,1769640660350,-500.0,0.00043287,120]
[403897308,1769640660360,-531.44,0.00043287,120]
[403897309,1769640660370,-519.41200705,0.00043287,120]
[403897310,1769640660379,-500.0,0.00043287,120]
[403897311,1769640660388,-198.01703235,0.00043287,120]
[403897312,1769640660421,-333.42296765,0.00043287,120]
[403897313,1769640660430,-282.98742339,0.00043287,120]
[403897330,1769641550171,-308.00881446,0.00015839,2]
[403897331,1769641747110,-500.0,0.00016373,2]
[403897332,1769641747132,-150.00327967,0.00016373,2]
[403897333,1769641747153,-151.0,0.00016634,2]
[403897334,1769641747178,-3751.20197093,0.00016719,2]
[403897335,1769641749805,-2801.891148,0.00016719,2]
[403897339,1769641831599,-500.0,0.00016373,2]
[403897340,1769641831609,-645.61919187,0.00016373,2]
[403897341,1769641831619,-151.0,0.00016521,2]
[403897342,1769641831628,-151.0,0.0001655,2]
[403897343,1769641831638,-35.28233873,0.00016579,2]
[403897344,1769641831649,-115.71766127,0.00016579,2]
[403897345,1769641831658,-300.0,0.00016718,2]
[403897346,1769641831668,-599.44521753,0.00016718,2]
[403897347,1769641831797,-600.55478247,0.00016718,2]
[403897348,1769641831807,-1332.09328777,0.00016719,2]
[403897349,1769641831819,-1014.08449454,0.00016719,2]
[403897350,1769641831831,-2012.78354579,0.00016719,2]
[403897351,1769641831859,-50400.41694521,0.00016719,2]
[403897352,1769641831870,-13232.92487448,0.00016719,2]
[403897353,1769641831884,-41276.78290757,0.00016719,2]
[403897355,1769641831895,-522.04790989,0.00016719,2]
[403897357,1769641831906,-492.41777302,0.00016719,2]
[403897360,1769641831917,-710.72814569,0.00016719,2]
[403897364,1769641831948,-9767.52471854,0.00016719,2]
[403897366,1769641831963,-28871.13114062,0.00016719,2]
[403897367,1769641831973,-427.68995244,0.00016719,2]
[403897368,1769641832006,-641.28142672,0.00016719,2]
[403897369,1769641832018,-526.29957105,0.00016719,2]
[403897370,1769641832036,-394.45008645,0.00016719,2]
[403897371,1769641832047,-1186.8261432,0.00016719,2]
[403897373,1769641837875,-105179.71275809,0.00016719,2]
[403897374,1769641837886,-237.1434,0.00016721,2]
[403897375,1769641837904,-3411.9435,0.00016721,2]
[403897376,1769641837914,-500.0,0.0001682,2]
[403897377,1769641837925,-500.0,0.0001682,2]
[403897378,1769641837935,-500.0,0.0001682,2]
[403897379,1769641837951,-500.0,0.0001682,2]
[403897380,1769641837962,-500.0,0.0001682,2]
[403897381,1769641837973,-500.0,0.0001682,2]
[403897382,1769641837982,-500.0,0.0001682,2]
[403897383,1769641837991,-335.1399525,0.0001682,2]
[403897384,1769641838000,-500.0,0.0001682,2]
[403897385,1769641838010,-500.0,0.0001682,2]
[403897386,1769641838019,-500.0,0.0001682,2]
[403897387,1769641838028,-500.0,0.0001682,2]
[403897388,1769641838038,-500.0,0.0001682,2]
[403897390,1769641838048,-500.0,0.0001682,2]
[403897392,1769641838057,-500.0,0.0001682,2]
[403897394,1769641838067,-500.0,0.0001682,2]
[403897396,1769641838076,-500.0,0.0001682,2]
[403897398,1769641838086,-500.0,0.0001682,2]
[403897400,1769641838095,-500.0,0.0001682,2]
[403897402,1769641838104,-500.0,0.0001682,2]
[403897404,1769641838114,-349.65630602,0.0001682,2]
[403897405,1769641838123,-500.0,0.0001682,2]
[403897407,1769641838133,-500.0,0.0001682,2]
[403897409,1769641838142,-500.0,0.0001682,2]
[403897411,1769641838152,-500.0,0.0001682,2]
[403897412,1769641838162,-500.0,0.0001682,2]
[403897415,1769641838174,-500.0,0.0001682,2]
[403897416,1769641838184,-500.0,0.0001682,2]
[403897418,1769641838193,-500.0,0.0001682,2]
[403897420,1769641838203,-500.0,0.0001682,2]
[403897422,1769641838212,-500.0,0.0001682,2]
[403897424,1769641838222,-500.0,0.0001682,2]
[403897426,1769641838232,-500.0,0.0001682,2]
[403897428,1769641838242,-500.0,0.0001682,2]
[403897429,1769641838251,-500.0,0.0001682,2]
[403897431,1769641838261,-500.0,0.0001682,2]
[403897433,1769641838271,-161.82063595,0.0001682,2]
[403897435,1769641838281,-221.22,0.0001682,2]
[403897437,1769641838292,-500.0,0.0001682,2]
[403897438,1769641838303,-500.0,0.0001682,2]
[403897440,1769641838312,-500.0,0.0001682,2]
[403897442,1769641838322,-500.0,0.0001682,2]
[403897444,1769641838332,-500.0,0.0001682,2]
[403897446,1769641838342,-500.0,0.0001682,2]
[403897448,1769641838352,-500.0,0.0001682,2]
[403897449,1769641838362,-500.0,0.0001682,2]
[403897451,1769641838371,-500.0,0.0001682,2]
[403897453,1769641838381,-500.0,0.0001682,2]
[403897455,1769641838391,-500.0,0.0001682,2]
[403897457,1769641838400,-516.25957248,0.0001682,2]
[403897459,1769641838410,-500.0,0.0001682,2]
[403897460,1769641838419,-500.0,0.0001682,2]
[403897462,1769641838429,-500.0,0.0001682,2]
[403897464,1769641838439,-500.0,0.0001682,2]
[403897466,1769641838448,-500.0,0.0001682,2]
[403897468,1769641838458,-500.0,0.0001682,2]
[403897470,1769641838467,-500.0,0.0001682,2]
[403897472,1769641838477,-500.0,0.0001682,2]
[403897474,1769641838486,-500.0,0.0001682,2]
[403897475,1769641838495,-500.0,0.0001682,2]
[403897477,1769641838504,-500.0,0.0001682,2]
[403897479,1769641838514,-500.0,0.0001682,2]
[403897481,1769641838523,-202.61350672,0.0001682,2]
[403897483,1769641838532,-209.47690551,0.0001682,2]
[403897485,1769641838542,-249.25406373,0.0001682,2]
[403897487,1769641838552,-236.73190882,0.0001682,2]
[403897489,1769641838562,-607.08563041,0.00016921,2]
[403897491,1769641838571,-1000.0,0.00017007,2]
[403897492,1769641838580,-35644.19,0.00017007,2]
[403897494,1769641838590,-9999.99,0.00017007,2]
[403897496,1769641838599,-250.0,0.00017423,2]
[403897498,1769641838608,-195.0,0.00017423,2]
[403897500,1769641838617,-300.0,0.00017423,2]
[403897502,1769641838626,-195.0,0.00017423,2]
[403897504,1769641838635,-150.00327967,0.00017705,2]
[403897505,1769641838644,-510.0,0.00018,2]
[403897507,1769641838654,-1287.34986807,0.000181,2]
[403897509,1769641838663,-2546.81,0.000182,2]
[403897511,1769641838672,-2654.9,0.000182,2]
[403897513,1769641838681,-458.86,0.000182,2]
[403897515,1769641838691,-2958.35,0.000182,2]
[403897516,1769641838700,-2442.33,0.000182,2]
[403897518,1769641838709,-621.25,0.000182,2]
[403897520,1769641838718,-2786.95,0.000182,2]
[403897522,1769641838727,-620.44,0.000182,2]
[403897524,1769641838736,-1956.36,0.000182,2]
[403897525,1769641838745,-399.68,0.000182,2]
[403897527,1769641838755,-2858.49,0.000182,2]
[403897529,1769641838764,-2178.11,0.000182,2]
[403897531,1769641838773,-1349.81,0.000182,2]
[403897533,1769641838782,-420.0,0.00018265,2]
[403897535,1769641838791,-480.0,0.00018356,2]
[403897537,1769641838800,-150.00327967,0.00019037,5]
[403897539,1769641838810,-531.53312881,0.00019178,2]
[403897541,1769641838819,-186.0,0.00019956,2]
[403897542,1769641838828,-815.23010825,0.00020178,2]
[403897544,1769641838838,-150.00327967,0.00020369,10]
[403897546,1769641838847,-1287.34986806,0.00020887,2]
[403897548,1769641838856,-150.00327967,0.00021701,14]
[403897550,1769641838865,-339.61437757,0.0002247,2]
[403897551,1769641838875,-523.91225366,0.00022515,2]
[403897553,1769641838887,-1635.0,0.00022735,2]
[403897555,1769641838898,-938.0,0.00022781,2]
[403897557,1769641838908,-150.00327967,0.00023033,18]
[403897559,1769641838919,-1287.34986806,0.00023675,2]
[403897562,1769641838935,-150.00327967,0.00024365,23]
[403897564,1769641838950,-466.57643727,0.00025,120]
[403897566,1769641838960,-2904.96933797,0.0002561,2]
[403897568,1769641838970,-150.00327967,0.00025697,27]
[403897611,1769641839394,-1287.34986806,0.00026462,2]
[403897613,1769641839433,-150.00327967,0.00027029,31]
[403897615,1769641839443,-150.00327967,0.00028361,35]
[403897617,1769641839453,-2904.96933797,0.00028539,2]
[403897619,1769641839462,-1287.34986806,0.0002925,2]
[403897621,1769641839471,-150.00327967,0.00029693,38]
[403897623,1769641839480,-411.9885,0.00030226,28]
[403897625,1769641839490,-150.00327967,0.00031025,42]
[403897627,1769641839500,-2904.96933797,0.00031469,2]
[403897629,1769641839509,-150.0,0.000318,14]
[403897631,1769641839519,-1287.34986806,0.00032037,2]
[403897632,1769641839528,-4831.0,0.0003212,2]
[403897634,1769641839539,-2442.0,0.0003212,2]
[403897636,1769641839549,-567.0,0.0003212,2]
[403897638,1769641839559,-150.00327967,0.00032357,46]
[403897640,1769641839567,-500.0,0.00032712,2]
[403897642,1769641839576,-208.56,0.000334,30]
[403897644,1769641839586,-150.00327967,0.00033689,49]
[403897646,1769641839595,-3196.7,0.00034104,120]
[403897648,1769641839605,-2904.96933797,0.00034398,2]
[403897650,1769641839614,-150.0,0.00034813,2]
[403897652,1769641839624,-1287.34986806,0.00034825,2]
[403897653,1769641839634,-150.00327983,0.00035021,53]
[403897655,1769641839643,-799.26,0.00035074,2]
[403897657,1769641839652,-1000.0,0.00035599,7]
[403897659,1769641839662,-150.0,0.00035616,60]
[403897661,1769641839671,-377.79,0.00035616,30]
[403897663,1769641839680,-150.0,0.00035671,60]
[403897665,1769641839689,-1814.367,0.00035694,42]
[403897667,1769641839698,-240.13590565,0.00035726,60]
[403897669,1769641839707,-1000.0,0.00035873,14]
[403897671,1769641839719,-1729.0,0.00035887,14]
[403897673,1769641839729,-175.67846241,0.00036352,57]
[403897675,1769641839738,-181.61613088,0.000372,120]
[403897676,1769641839747,-2904.96933797,0.00037328,2]
[403897677,1769641839757,-1287.34986806,0.00037612,2]
[403897679,1769641839767,-175.67846241,0.00037684,61]
[403897681,1769641839776,-180.18893649,0.00038356,60]
[403897683,1769641839786,-175.67846241,0.00039016,64]
[403897684,1769641839795,-880.0545839,0.00039214,2]
[403897685,1769641839805,-348.26266687,0.00039214,2]
[403897686,1769641839814,-335.23688284,0.00039214,2]
[403897687,1769641839825,-500.0,0.00039264,2]
[403897688,1769641839834,-150.0,0.000394,39]
[403897689,1769641839845,-1500.0,0.000397,2]
[403897690,1769641839854,-2812.20838248,0.00040257,15]
[403897692,1769641839912,-92.76095549,0.00040257,15]
[403897693,1769641839923,-175.67846241,0.00040348,68]
[403897695,1769641839933,-750.0,0.00040417,20]
[403897697,1769641839942,-38.45865194,0.00040451,30]
[403897700,1769641839959,-339.33134806,0.00040451,30]
[403897702,1769641839968,-102.13865194,0.00040498,120]
[403897704,1769641839979,-650.61843641,0.00040498,120]
[403897758,1769641840460,-151.0,0.0001655,2]
[403897760,1769641840470,-151.0,0.0001655,2]
[403897762,1769641840479,-1287.34986806,0.000404,15]
[403897764,1769641840488,-373.84291165,0.00040498,120]
[403897766,1769641840498,-1361.5,0.00041028,120]
[403897768,1769641840507,-1898.08886904,0.00041268,10]
[403897770,1769641840518,-421.14923811,0.00041268,10]
[403897772,1769641840529,-259.39905185,0.00041268,10]
[403897775,1769641840540,-1660.17763539,0.00041268,10]
[403897777,1769641840549,-10332.01074235,0.00041534,15]
[403897779,1769641840559,-1361.5,0.00041559,120]
[403897781,1769641840568,-253.44,0.00041628,2]
[403897783,1769641840577,-175.67846241,0.0004168,72]
[403897785,1769641840587,-500.0,0.00041884,60]
[403897787,1769641840596,-500.0,0.00041884,60]
[403897789,1769641840606,-500.0,0.00041884,60]
[403897791,1769641840615,-1001.45139082,0.00041988,7]
[403897793,1769641840625,-500.0,0.00042178,30]
[403897795,1769641840634,-577.0,0.00042224,30]
[403897797,1769641840644,-1000.0,0.00042289,2]
[403897799,1769641840654,-577.0,0.00042659,30]
[403897801,1769641840663,-500.0,0.00042877,2]
[403897803,1769641840673,-500.0,0.0004298,60]
[403897805,1769641840683,-1062.1340997,0.00043,30]
[403897807,1769641840692,-175.67846241,0.00043012,82]
[403897809,1769641840701,-536.84635372,0.00043037,120]
[403897811,1769641840711,-577.0,0.00043094,30]
[403897813,1769641840720,-319.64260527,0.00043186,120]
[403897815,1769641840730,-153.72473404,0.00043187,17]
[403897817,1769641840739,-2904.96933797,0.00043187,15]
[403897819,1769641840748,-212.08876731,0.00043187,2]
[403897821,1769641840758,-190.19209598,0.00043187,8]
[403897823,1769641840767,-186.58226438,0.00043187,19]
[403897825,1769641840777,-33266.4327,0.00043187,2]
[403897827,1769641840786,-1631.63731508,0.00043187,120]
[403897829,1769641840795,-1631.63731508,0.00043187,120]
[403897831,1769641840805,-1631.63731508,0.00043187,120]
[403897833,1769641840814,-1563.51495071,0.00043187,120]
[403897836,1769641840826,-68.12236437,0.00043187,120]
[403897838,1769641840835,-1631.63731508,0.00043187,120]
[403897840,1769641840844,-1631.63731508,0.00043187,120]
[403897842,1769641840855,-1631.63731508,0.00043187,120]
[403897844,1769641840864,-1631.63731508,0.00043187,120]
[403897846,1769641840874,-1631.63731508,0.00043187,120]
[403897848,1769641840884,-1631.63731508,0.00043187,120]
[403897850,1769641840896,-1631.63731508,0.00043187,120]
[403897852,1769641840905,-1631.63731508,0.00043187,120]
[403897854,1769641840916,-1631.63731508,0.00043187,120]
[403897856,1769641840927,-1631.63731508,0.00043187,120]
[403897858,1769641840936,-1631.63731508,0.00043187,120]
[403897860,1769641840946,-1631.63731508,0.00043187,120]
[403897862,1769641840956,-1631.63731508,0.00043187,120]
[403897864,1769641840967,-1631.63731508,0.00043187,120]
[403897866,1769641840978,-1631.63731508,0.00043187,120]
[403897868,1769641840988,-1631.63,0.00043187,120]
[403897870,1769641840997,-256.435562,0.000432,42]
[403897872,1769641841006,-510.238296,0.00043215,120]
[403897874,1769641841015,-200.0,0.00043215,120]
[403897876,1769641841024,-524.80998578,0.00043244,120]
[403897878,1769641841034,-150.0,0.0004326,30]
[403897880,1769641841043,-150.0,0.0004326,30]
[403897882,1769641841052,-156.45398449,0.0004326,30]
[403897884,1769641841062,-266.36917134,0.0004326,30]
[403897886,1769641841071,-150.0,0.0004326,30]
[403897888,1769641841081,-150.0,0.0004326,30]
[403897890,1769641841090,-150.0,0.0004326,30]
[403897892,1769641841099,-150.0,0.0004326,30]
[403897894,1769641841108,-150.0,0.0004326,30]
[403897896,1769641841117,-150.0,0.0004326,30]
[403897898,1769641841127,-150.0,0.0004326,30]
[403897900,1769641841136,-150.0,0.0004326,30]
[403897902,1769641841145,-150.0,0.0004326,30]
[403897904,1769641841154,-150.0,0.0004326,30]
[403897906,1769641841163,-150.0,0.0004326,30]
[403897908,1769641841172,-156.45398449,0.00043263,30]
[403897910,1769641841181,-266.36917134,0.00043263,30]
[403897912,1769641841190,-150.0,0.00043264,30]
[403897914,1769641841200,-150.0,0.00043264,30]
[403897916,1769641841209,-150.0,0.00043264,30]
[403897918,1769641841219,-150.0,0.00043264,30]
[403897920,1769641841229,-150.0,0.00043265,30]
[403897922,1769641841238,-8105.0,0.00043266,7]
[403897924,1769641841247,-156.45398449,0.00043266,30]
[403897926,1769641841256,-266.36917134,0.00043266,30]
[403897928,1769641841266,-150.0,0.00043268,30]
[403897930,1769641841275,-150.0,0.00043268,30]
[403897933,1769641841285,-150.0,0.00043268,30]
[403897935,1769641841294,-150.0,0.00043268,30]
[403897937,1769641841303,-150.0,0.00043268,30]
[403897938,1769641841313,-150.0,0.00043269,30]
[403897941,1769641841323,-156.45398449,0.00043269,30]
[403897942,1769641841332,-266.36917134,0.00043269,30]
[403897945,1769641841342,-156.45398449,0.00043272,30]
[403897947,1769641841351,-266.36917134,0.00043272,30]